fUST/lending_fUST_20240720
["ID","MTS","AMOUNT","RATE_DAILY","PERIOD"]
[332730022,1721490650042,-500.0,0.00015074,2]
[332730023,1721490650051,-1463.94,0.00015074,2]
[332730024,1721490650061,-546.72,0.00015074,2]
[332730025,1721490650070,-500.0,0.00015074,2]
[332730026,1721490650079,-501.43123297,0.00015074,2]
[332730027,1721490650090,-500.0,0.00015074,2]
[332730028,1721490650100,-500.0,0.00015074,2]
[332730029,1721490650110,-500.0,0.00015074,2]
[332730030,1721490650121,-934.67,0.00015074,2]
[332730031,1721490650130,-687.02,0.00015074,2]
[332730032,1721490650142,-2961.39,0.00015074,2]
[332730033,1721490650152,-500.0,0.00015074,2]
[332730034,1721490650162,-1880.26,0.00015074,2]
[332730035,1721490650172,-500.0,0.00015074,2]
[332730036,1721490650181,-500.0,0.00015074,2]
[332730037,1721490650191,-557.35,0.00015074,2]
[332730038,1721490650201,-500.0,0.00015074,2]
[332730039,1721490650211,-1506.63,0.00015074,2]
[332730040,1721490650221,-507.53,0.00015074,2]
[332730041,1721490650230,-655.65,0.00015074,2]
[332730042,1721490650240,-1137.55,0.00015074,2]
[332730043,1721490650250,-1045.37,0.00015074,2]
[332730044,1721490650259,-586.14,0.00015074,2]
[332730045,1721490650268,-784.38,0.00015074,2]
[332730046,1721490650278,-4152.27,0.00015074,2]
[332730047,1721490650287,-500.0,0.00015075,2]
[332730048,1721490650297,-500.0,0.00015075,2]
[332730049,1721490650306,-570.19,0.00015075,2]
[332730050,1721490650315,-500.0,0.00015075,2]
[332730051,1721490650324,-1425.22,0.00015075,2]
[332730052,1721490650333,-582.99,0.00015075,2]
[332730053,1721490650343,-2704.37,0.00015075,2]
[332730054,1721490650352,-500.0,0.00015075,2]
[332730055,1721490650361,-500.0,0.00015075,2]
[332730056,1721490650370,-500.0,0.00015075,2]
[332730057,1721490650380,-500.0,0.00015075,2]
[332730058,1721490650390,-562.25,0.00015075,2]
[332730059,1721490650399,-973.63,0.00015075,2]
[332730060,1721490650408,-1950.43,0.00015075,2]
[332730061,1721490650418,-2305.47,0.00015075,2]
[332730062,1721490650427,-500.0,0.00015086,2]
[332730063,1721490650436,-500.0,0.00015086,2]
[332730064,1721490650446,-245.08411045,0.00015086,2]
[332730065,1721490650458,-507.42940929,0.00015086,2]
[332730066,1721490650470,-500.0,0.00015086,2]
[332730067,1721490650481,-500.0,0.00015086,2]
[332730068,1721490650490,-500.0,0.00015086,2]
[332730069,1721490650500,-500.0,0.00015086,2]
[332730070,1721490650509,-500.0,0.00015086,2]
[332730071,1721490650519,-500.0,0.00015086,2]
[332730072,1721490650528,-722.84,0.00015086,2]
[332730073,1721490650537,-996.68,0.00015086,2]
[332730074,1721490650548,-500.0,0.00015086,2]
[332730075,1721490650558,-500.0,0.00015086,2]
[332730076,1721490650568,-500.0,0.00015086,2]
[332730077,1721490650578,-608.35,0.00015086,2]
[332730078,1721490650587,-492.93432717,0.00015086,2]
[332730079,1721490650597,-500.0,0.00015086,2]
[332730080,1721490650608,-500.0,0.00015086,2]
[332730081,1721490650618,-500.0,0.00015086,2]
[332730082,1721490650627,-500.0,0.00015086,2]
[332730083,1721490650636,-500.0,0.00015086,2]
[332730084,1721490650646,-2395.97,0.00015086,2]
[332730085,1721490650656,-500.0,0.00015086,2]
[332730086,1721490650665,-500.0,0.00015086,2]
[332730087,1721490650675,-641.96,0.00015086,2]
[332730088,1721490650685,-500.0,0.00015086,2]
[332730089,1721490650694,-500.0,0.00015086,2]
[332730090,1721490650703,-500.0,0.00015086,2]
[332730091,1721490650713,-513.24561122,0.00015086,2]
[332730092,1721490650722,-500.0,0.00015086,2]
[332730093,1721490650732,-500.0,0.00015086,2]
[332730094,1721490650741,-500.0,0.00015086,2]
[332730095,1721490650751,-500.0,0.00015086,2]
[332730096,1721490650761,-500.0,0.00015086,2]
[332730097,1721490650770,-820.83,0.00015086,2]
[332730098,1721490650780,-582.4,0.00015086,2]
[332730099,1721490650791,-500.0,0.00015086,2]
[332730100,1721490650803,-500.0,0.00015086,2]
[332730101,1721490650813,-500.0,0.00015086,2]
[332730102,1721490650822,-500.0,0.00015086,2]
[332730103,1721490650831,-500.0,0.00015086,2]
[332730104,1721490650841,-608.63406425,0.00015086,2]
[332730105,1721490650851,-1189.82,0.00015086,2]
[332730106,1721490650861,-500.0,0.00015086,2]
[332730107,1721490650871,-500.0,0.00015086,2]
[332730108,1721490650880,-718.68,0.00015086,2]
[332730109,1721490650889,-500.0,0.00015086,2]
[332730110,1721490650898,-500.0,0.00015086,2]
[332730111,1721490650908,-500.0,0.00015086,2]
[332730112,1721490650917,-500.0,0.00015086,2]
[332730113,1721490650926,-500.0,0.00015086,2]
[332730114,1721490650935,-500.0,0.00015086,2]
[332730115,1721490650944,-500.0,0.00015086,2]
[332730116,1721490650955,-500.0,0.00015086,2]
[332730117,1721490650965,-500.0,0.00015086,2]
[332730118,1721490650974,-500.0,0.00015086,2]
[332730119,1721490650987,-500.0,0.00015086,2]
[332730120,1721490650996,-500.0,0.00015086,2]
[332730121,1721490651006,-1068.47,0.00015086,2]
[332730122,1721490651015,-500.0,0.00015086,2]
[332730123,1721490651024,-1131.22,0.00015086,2]
[332730124,1721490651033,-500.0,0.00015086,2]
[332730125,1721490651042,-171.17220993,0.00015086,2]
[332730126,1721490651052,-2897.29,0.00015086,2]
[332730127,1721490651061,-500.0,0.00015086,2]
[332730128,1721490651071,-500.0,0.00015086,2]
[332730129,1721490651080,-500.0,0.00015086,2]
[332730130,1721490651090,-501.41673418,0.00015086,2]
[332730131,1721490651099,-500.0,0.00015086,2]
[332730132,1721490651109,-500.0,0.00015086,2]
[332730133,1721490651119,-605.36,0.00015086,2]
[332730134,1721490651129,-762.42,0.00015086,2]
[332730135,1721490651138,-1585.46,0.00015086,2]
[332730136,1721490651148,-710.94,0.00015086,2]
[332730137,1721490651157,-500.0,0.00015086,2]
[332730138,1721490651166,-501.6,0.00015086,2]
[332730139,1721490651175,-500.0,0.00015086,2]
[332730140,1721490651184,-500.0,0.00015086,2]
[332730141,1721490651194,-526.48973884,0.00015086,2]
[332730142,1721490651205,-500.0,0.00015086,2]
[332730143,1721490651214,-500.0,0.00015086,2]
[332730144,1721490651223,-500.0,0.00015086,2]
[332730145,1721490651232,-500.0,0.00015086,2]
[332730146,1721490651241,-500.0,0.00015086,2]
[332730147,1721490651251,-500.0,0.00015086,2]
[332730148,1721490651260,-984.39,0.00015086,2]
[332730149,1721490651269,-500.0,0.00015086,2]
[332730150,1721490651279,-500.0,0.00015086,2]
[332730151,1721490651288,-994.69,0.00015086,2]
[332730152,1721490651298,-555.93805008,0.00015086,2]
[332730153,1721490651308,-500.0,0.00015086,2]
[332730154,1721490651317,-500.0,0.00015086,2]
[332730155,1721490651327,-500.0,0.00015086,2]
[332730156,1721490651336,-737.79,0.00015086,2]
[332730157,1721490651346,-500.0,0.00015086,2]
[332730158,1721490651356,-500.0,0.00015086,2]
[332730159,1721490651365,-492.04095382,0.000151,2]
[332730160,1721490651375,-500.0,0.00015107,2]
[332730161,1721490651384,-500.0,0.00015107,2]
[332730162,1721490651394,-2103.62,0.00015127,2]
[332730163,1721490651404,-2340.91350928,0.00015169,2]
[332730164,1721490651414,-155.98610733,0.00015214,2]
[332730165,1721490651423,-500.0,0.00015214,2]
[332730166,1721490651434,-500.0,0.00015214,2]
[332730167,1721490651443,-500.0,0.00015214,2]
[332730168,1721490651453,-500.0,0.00015214,2]
[332730169,1721490651463,-500.0,0.00015214,2]
[332730170,1721490651472,-989.02,0.00015214,2]
[332730171,1721490651481,-630.86,0.00015214,2]
[332730172,1721490651491,-828.19,0.00015214,2]
[332730173,1721490651500,-1071.23,0.00015214,2]
[332730174,1721490651510,-500.0,0.00015214,2]
[332730175,1721490651519,-703.44,0.00015214,2]
[332730176,1721490651529,-624.25,0.00015214,2]
[332730177,1721490651538,-500.0,0.00015214,2]
[332730178,1721490651547,-500.0,0.00015214,2]
[332730179,1721490651558,-526.52,0.00015214,2]
[332730180,1721490651567,-500.0,0.00015214,2]
[332730181,1721490651576,-500.0,0.00015214,2]
[332730182,1721490651585,-1214.35,0.00015214,2]
[332730183,1721490651595,-513.99920471,0.00015214,2]
[332730184,1721490651605,-500.0,0.00015214,2]
[332730185,1721490651615,-737.48,0.00015214,2]
[332730186,1721490651625,-500.0,0.00015214,2]
[332730187,1721490651634,-500.0,0.00015214,2]
[332730188,1721490651644,-500.0,0.00015214,2]
[332730189,1721490651653,-150.0,0.00015214,2]
[332730190,1721490651663,-500.0,0.00015214,2]
[332730191,1721490651673,-506.54,0.00015214,2]
[332730192,1721490651683,-551.98,0.00015214,2]
[332730193,1721490651692,-500.0,0.00015214,2]
[332730194,1721490651702,-182.45544952,0.00015214,2]
[332730195,1721490651713,-596.4,0.00015224,2]
[332730196,1721490651723,-500.0,0.00015224,2]
[332730197,1721490651732,-588.56,0.00015224,2]
[332730198,1721490651742,-1336.55,0.00015224,2]
[332730199,1721490651751,-564.06,0.00015224,2]
[332730200,1721490651761,-781.31,0.00015224,2]
[332730201,1721490651770,-3134.46,0.00015224,2]
[332730202,1721490651779,-960.96,0.00015224,2]
[332730203,1721490651789,-738.78,0.00015224,2]
[332730204,1721490651802,-9920.47,0.00015224,2]
[332730205,1721490651812,-1954.12,0.00015224,2]
[332730206,1721490651821,-3918.54,0.00015224,2]
[332730207,1721490651831,-3036.74,0.00015224,2]
[332730208,1721490651841,-3238.59,0.00015224,2]
[332730209,1721490651850,-2305.92,0.00015224,2]
[332730210,1721490651861,-5210.73,0.00015224,2]
[332730211,1721490651873,-13029.34,0.00015224,2]
[332730212,1721490651882,-6147.63,0.00015224,2]
[332730213,1721490651891,-3092.34,0.00015224,2]
[332730214,1721490651901,-2384.71,0.00015224,2]
[332730215,1721490651910,-8339.41,0.00015224,2]
[332730216,1721490651920,-3619.84,0.00015224,2]
[332730217,1721490651929,-500.0,0.00015224,2]
[332730218,1721490651939,-1326.31,0.00015224,2]
[332730219,1721490651950,-856.42,0.00015224,2]
[332730220,1721490651962,-1365.63,0.00015224,2]
[332730221,1721490651973,-1323.73,0.00015224,2]
[332730222,1721490651985,-500.0,0.00015224,2]
[332730223,1721490651994,-500.0,0.00015224,2]
[332730224,1721490652004,-1612.69,0.00015224,2]
[332730225,1721490652019,-500.0,0.00015224,2]
[332730226,1721490652029,-500.0,0.00015224,2]
[332730227,1721490652039,-3171.01,0.00015224,2]
[332730228,1721490652049,-2380.43,0.00015224,2]
[332730229,1721490652060,-500.0,0.00015224,2]
[332730230,1721490652069,-535.32,0.00015224,2]
[332730231,1721490652083,-816.87,0.00015225,2]
[332730232,1721490652098,-500.0,0.00015225,2]
[332730233,1721490652113,-644.01,0.00015225,2]
[332730234,1721490652126,-1109.33,0.00015225,2]
[332730235,1721490652139,-764.62,0.00015225,2]
[332730236,1721490652149,-589.68,0.00015225,2]
[332730237,1721490652161,-500.0,0.00015225,2]
[332730238,1721490652175,-500.0,0.00015225,2]
[332730239,1721490652189,-500.0,0.00015225,2]
[332730240,1721490652201,-2258.62,0.00015225,2]
[332730241,1721490652216,-2208.94,0.00015225,2]
[332730242,1721490652232,-500.0,0.00015225,2]
[332730243,1721490652244,-1676.12,0.00015225,2]
[332730244,1721490652257,-3262.98,0.00015225,2]
[332730245,1721490652271,-2228.19,0.00015225,2]
[332730246,1721490652285,-2706.61,0.00015225,2]
[332730247,1721490652298,-1270.16,0.00015225,2]
[332730248,1721490652311,-500.0,0.00015225,2]
[332730249,1721490652322,-642.53,0.00015225,2]
[332730250,1721490652334,-802.79,0.00015225,2]
[332730251,1721490652349,-353.74643827,0.00015225,2]
[332730252,1721490652363,-709.79,0.00015225,2]
[332730253,1721490652377,-21939.8,0.00015225,2]
[332730254,1721490652388,-521.4783236,0.00015225,2]
[332730255,1721490652400,-680.05,0.00015225,2]
[332730256,1721490652411,-500.0,0.00015225,2]
[332730257,1721490652424,-3547.71,0.00015225,2]
[332730258,1721490652435,-3668.77,0.00015225,2]
[332730259,1721490652448,-729.38,0.00015225,2]
[332730260,1721490652461,-500.0,0.00015225,2]
[332730261,1721490652474,-699.13,0.00015225,2]
[332730262,1721490652486,-1769.08,0.00015225,2]
[332730263,1721490652500,-500.0,0.00015225,2]
[332730264,1721490652513,-500.0,0.00015225,2]
[332730265,1721490652527,-630.75,0.00015225,2]
[332730266,1721490652541,-866.94,0.00015225,2]
[332730267,1721490652553,-500.0,0.00015225,2]
[332730268,1721490652563,-2342.31,0.00015225,2]
[332730269,1721490652574,-500.0,0.00015225,2]
[332730270,1721490652585,-10408.57,0.00015225,2]
[332730271,1721490652596,-13001.07952796,0.00015227,5]
[332730272,1721490652609,-1115.51,0.00015227,2]
[332730273,1721490652622,-1411.44,0.00015227,2]
[332730274,1721490652635,-500.0,0.00015227,2]
[332730275,1721490652646,-5389.14,0.00015227,2]
[332730276,1721490652658,-2372.21,0.00015227,2]
[332730277,1721490652671,-500.0,0.00015227,2]
[332730278,1721490652682,-3842.19,0.00015227,2]
[332730279,1721490652695,-574.86,0.00015227,2]
[332730280,1721490652707,-1798.23,0.00015227,2]
[332730281,1721490652718,-1214.62,0.00015227,2]
[332730282,1721490652730,-749.13,0.00015227,2]
[332730283,1721490652741,-4527.59,0.00015227,2]
[332730284,1721490652754,-542.02,0.00015227,2]
[332730285,1721490652765,-2470.16,0.00015227,2]
[332730286,1721490652777,-4624.65,0.00015227,2]
[332730287,1721490652788,-352.51834169,0.00015236,2]
[332730288,1721490652801,-500.0,0.00015236,2]
[332730289,1721490652812,-562.4,0.00015236,2]
[332730290,1721490652824,-500.0,0.00015236,2]
[332730291,1721490652835,-500.0,0.00015236,2]
[332730292,1721490652846,-2418.71,0.00015236,2]
[332730293,1721490652857,-749.26,0.00015236,2]
[332730294,1721490652868,-500.0,0.00015236,2]
[332730295,1721490652881,-500.0,0.00015236,2]
[332730296,1721490652893,-1398.75,0.00015236,2]
[332730297,1721490652904,-500.0,0.00015236,2]
[332730298,1721490652916,-518.45285291,0.00015236,2]
[332730299,1721490652928,-593.92,0.00015236,2]
[332730300,1721490652939,-986.72,0.00015236,2]
[332730301,1721490652953,-500.0,0.00015236,2]
[332730302,1721490652967,-500.0,0.00015236,2]
[332730303,1721490652978,-500.0,0.00015236,2]
[332730304,1721490652989,-500.0,0.00015236,2]
[332730305,1721490653000,-562.63316697,0.00015236,2]
[332730306,1721490653011,-507.40824382,0.00015236,2]
[332730307,1721490653023,-601.67470916,0.00015236,2]
[332730308,1721490653035,-500.0,0.00015236,2]
[332730309,1721490653046,-500.0,0.00015236,2]
[332730310,1721490653057,-930.06,0.00015236,2]
[332730311,1721490653067,-500.0,0.00015236,2]
[332730312,1721490653079,-500.0,0.00015236,2]
[332730313,1721490653089,-500.0,0.00015236,2]
[332730314,1721490653100,-560.73301691,0.00015236,2]
[332730315,1721490653112,-500.0,0.00015236,2]
[332730316,1721490653124,-652.64,0.00015236,2]
[332730317,1721490653136,-1262.53,0.00015236,2]
[332730318,1721490653147,-500.0,0.00015236,2]
[332730319,1721490653159,-500.0,0.00015236,2]
[332730320,1721490653170,-1045.3,0.00015236,2]
[332730321,1721490653182,-421.88467126,0.00015236,2]
[332730322,1721490653194,-500.0,0.00015236,2]
[332730323,1721490653205,-2580.08,0.00015236,2]
[332730324,1721490653216,-500.0,0.00015236,2]
[332730325,1721490653227,-500.0,0.00015236,2]
[332730326,1721490653238,-500.0,0.00015236,2]
[332730327,1721490653250,-2783.24,0.00015236,2]
[332730328,1721490653262,-500.0,0.00015236,2]
[332730329,1721490653274,-500.0,0.00015236,2]
[332730330,1721490653287,-500.0,0.00015236,2]
[332730331,1721490653299,-500.0,0.00015236,2]
[332730332,1721490653311,-500.0,0.00015236,2]
[332730333,1721490653322,-961.14,0.00015236,2]
[332730334,1721490653334,-500.0,0.00015236,2]
[332730335,1721490653346,-500.0,0.00015236,2]
[332730336,1721490653360,-500.0,0.00015236,2]
[332730337,1721490653371,-819.99,0.00015236,2]
[332730338,1721490653383,-626.67,0.00015236,2]
[332730339,1721490653394,-644.68,0.00015236,2]
[332730340,1721490653407,-500.0,0.00015236,2]
[332730341,1721490653419,-500.0,0.00015236,2]
[332730342,1721490653430,-500.0,0.00015236,2]
[332730343,1721490653445,-583.33475046,0.00015236,2]
[332730344,1721490653457,-500.0,0.00015236,2]
[332730345,1721490653468,-736.56,0.00015236,2]
[332730346,1721490653479,-575.77,0.00015236,2]
[332730347,1721490653490,-500.0,0.00015236,2]
[332730348,1721490653501,-500.0,0.00015236,2]
[332730349,1721490653512,-1127.84,0.00015236,2]
[332730350,1721490653523,-500.0,0.00015236,2]
[332730351,1721490653534,-500.0,0.00015236,2]
[332730352,1721490653545,-1989.55,0.00015236,2]
[332730353,1721490653556,-500.0,0.00015236,2]
[332730354,1721490653567,-500.0,0.00015236,2]
[332730355,1721490653578,-500.0,0.00015236,2]
[332730356,1721490653589,-643.83,0.00015236,2]
[332730357,1721490653600,-857.46,0.00015236,2]
[332730358,1721490653612,-500.0,0.00015236,2]
[332730359,1721490653624,-500.0,0.00015236,2]
[332730360,1721490653636,-2060.39,0.00015236,2]
[332730361,1721490653647,-1035.25,0.00015236,2]
[332730362,1721490653658,-500.0,0.00015236,2]
[332730363,1721490653671,-500.0,0.00015236,2]
[332730364,1721490653683,-500.0,0.00015236,2]
[332730365,1721490653695,-500.0,0.00015236,2]
[332730366,1721490653708,-976.92,0.00015236,2]
[332730367,1721490653720,-500.0,0.00015236,2]
[332730368,1721490653732,-894.49,0.00015236,2]
[332730369,1721490653744,-734.81,0.00015236,2]
[332730370,1721490653756,-557.1609449,0.00015236,2]
[332730371,1721490653767,-500.0,0.00015236,2]
[332730372,1721490653778,-500.0,0.00015236,2]
[332730373,1721490653792,-1395.86,0.00015236,2]
[332730374,1721490653807,-500.0,0.00015236,2]
[332730375,1721490653819,-1725.49,0.00015236,2]
[332730376,1721490653833,-500.0,0.00015236,2]
[332730377,1721490653848,-10196.05,0.00015236,2]
[332730378,1721490653859,-814.58,0.00015236,2]
[332730379,1721490653872,-856.67,0.00015236,2]
[332730380,1721490653887,-500.0,0.00015236,2]
[332730381,1721490653898,-500.0,0.00015236,2]
[332730382,1721490653910,-500.0,0.00015236,2]
[332730383,1721490653921,-1401.78,0.00015236,2]
[332730384,1721490653934,-2560.67,0.00015236,2]
[332730385,1721490653946,-500.0,0.00015236,2]
[332730386,1721490653959,-500.0,0.00015236,2]
[332730387,1721490653970,-6101.97,0.00015236,2]
[332730388,1721490653981,-545.40045561,0.00015236,2]
[332730389,1721490653992,-500.0,0.00015236,2]
[332730390,1721490654002,-1118.85,0.00015236,2]
[332730391,1721490654013,-500.0,0.00015236,2]
[332730392,1721490654025,-500.0,0.00015236,2]
[332730393,1721490654036,-500.0,0.00015236,2]
[332730394,1721490654051,-251.91577685,0.00015236,2]
[332730395,1721490654062,-500.0,0.00015236,2]
[332730396,1721490654074,-593.62,0.00015236,2]
[332730397,1721490654084,-637.53893582,0.00015236,2]
[332730398,1721490654096,-500.0,0.00015236,2]
[332730399,1721490654106,-500.0,0.00015236,2]
[332730400,1721490654118,-502.95,0.00015236,2]
[332730401,1721490654129,-689.34,0.00015236,2]
[332730402,1721490654140,-500.0,0.00015236,2]
[332730403,1721490654151,-563.96,0.00015236,2]
[332730404,1721490654163,-1967.52,0.00015237,2]
[332730405,1721490654174,-1764.57,0.00015237,2]
[332730406,1721490654184,-3086.74,0.00015237,2]
[332730407,1721490654195,-1172.02,0.00015237,2]
[332730408,1721490654207,-1972.47,0.00015237,2]
[332730409,1721490654218,-847.4,0.00015237,2]
[332730410,1721490654229,-500.0,0.00015237,2]
[332730411,1721490654239,-1458.47,0.00015237,2]
[332730412,1721490654250,-1921.59,0.00015237,2]
[332730413,1721490654261,-500.0,0.00015237,2]
[332730414,1721490654272,-500.0,0.00015237,2]
[332730415,1721490654282,-652.54,0.00015237,2]
[332730416,1721490654293,-530.16,0.00015237,2]
[332730417,1721490654304,-500.0,0.00015237,2]
[332730418,1721490654314,-500.0,0.00015237,2]
[332730419,1721490654325,-679.13,0.00015237,2]
[332730420,1721490654335,-3056.03,0.00015237,2]
[332730421,1721490654345,-453.62559309,0.00015237,2]
[332730422,1721490654356,-500.0,0.00015237,2]
[332730423,1721490654367,-500.0,0.00015237,2]
[332730424,1721490654378,-1343.29,0.00015237,2]
[332730425,1721490654388,-12025.36,0.00015237,2]
[332730426,1721490654399,-500.0,0.00015237,2]
[332730427,1721490654410,-1011.12,0.00015237,2]
[332730428,1721490654421,-1808.36,0.00015237,2]
[332730429,1721490654432,-1616.38,0.00015285,2]
[332730430,1721490654442,-3704.58,0.00015285,2]
[332730431,1721490654452,-586.07,0.00015285,2]
[332730432,1721490654465,-16708.65,0.00015285,2]
[332730433,1721490654475,-44570.67,0.00015285,2]
[332730434,1721490654487,-1363.87254184,0.00015314,2]
[332730435,1721490654498,-420.0,0.00015332,2]
[332730436,1721490654508,-500.0,0.00015348,2]
[332730437,1721490654522,-511.21,0.00015348,2]
[332730438,1721490654532,-855.71,0.00015348,2]
[332730439,1721490654543,-538.07,0.00015348,2]
[332730440,1721490654554,-500.0,0.00015348,2]
[332730441,1721490654564,-1331.09,0.00015348,2]
[332730442,1721490654575,-519.12,0.00015348,2]
[332730443,1721490654586,-594.22,0.00015348,2]
[332730444,1721490654596,-500.0,0.00015348,2]
[332730445,1721490654607,-3473.23,0.00015348,2]
[332730446,1721490654619,-914.37,0.00015348,2]
[332730447,1721490654631,-1047.43,0.00015348,2]
[332730448,1721490654641,-500.0,0.00015348,2]
[332730449,1721490654652,-1163.86,0.00015348,2]
[332730450,1721490654664,-914.49,0.00015348,2]
[332730451,1721490654675,-500.0,0.00015348,2]
[332730452,1721490654686,-500.0,0.00015348,2]
[332730453,1721490654697,-4278.72,0.00015348,2]
[332730454,1721490654709,-500.0,0.00015348,2]
[332730455,1721490654720,-1463.94,0.00015348,2]
[332730456,1721490654731,-546.72,0.00015348,2]
[332730457,1721490654743,-500.0,0.00015348,2]
[332730458,1721490654754,-370.99336645,0.00015348,2]
[332730459,1721490654765,-500.0,0.00015348,2]
[332730460,1721490654776,-500.0,0.00015348,2]
[332730461,1721490655138,-934.67,0.00015348,2]
[332730462,1721490655154,-687.02,0.00015348,2]
[332730463,1721490655164,-2961.39,0.00015348,2]
[332730464,1721490655173,-500.0,0.00015348,2]
[332730465,1721490655182,-1880.26,0.00015348,2]
[332730466,1721490655191,-500.0,0.00015348,2]
[332730467,1721490655201,-557.35,0.00015348,2]
[332730468,1721490655211,-500.0,0.00015348,2]
[332730469,1721490655221,-1506.63,0.00015348,2]
[332730470,1721490655230,-507.53,0.00015348,2]
[332730471,1721490655240,-655.65,0.00015348,2]
[332730472,1721490655249,-1137.55,0.00015348,2]
[332730473,1721490655258,-1045.37,0.00015348,2]
[332730474,1721490655268,-784.38,0.00015348,2]
[332730475,1721490655277,-4152.27,0.00015348,2]
[332730476,1721490655286,-500.0,0.00015349,2]
[332730477,1721490655297,-500.0,0.00015349,2]
[332730478,1721490655307,-570.19,0.00015349,2]
[332730479,1721490655317,-500.0,0.00015349,2]
[332730480,1721490655328,-1425.22,0.00015349,2]
[332730481,1721490655337,-582.99,0.00015349,2]
[332730482,1721490655347,-2704.37,0.00015349,2]
[332730483,1721490655358,-582.80298837,0.00015349,2]
[332730484,1721490655368,-500.0,0.00015349,2]
[332730485,1721490655381,-500.0,0.00015349,2]
[332730486,1721490655390,-500.0,0.00015349,2]
[332730487,1721490655400,-562.25,0.00015349,2]
[332730488,1721490655409,-973.63,0.00015349,2]
[332730489,1721490655419,-1950.43,0.00015349,2]
[332730490,1721490655428,-2305.47,0.00015349,2]
[332730491,1721490655437,-500.0,0.0001536,2]
[332730492,1721490655447,-500.0,0.0001536,2]
[332730493,1721490655457,-500.0,0.0001536,2]
[332730494,1721490655468,-500.0,0.0001536,2]
[332730495,1721490655477,-533.52163942,0.0001536,2]
[332730496,1721490655486,-500.0,0.0001536,2]
[332730497,1721490655496,-500.0,0.0001536,2]
[332730498,1721490655505,-500.0,0.0001536,2]
[332730499,1721490655515,-722.84,0.0001536,2]
[332730500,1721490655525,-996.68,0.0001536,2]
[332730502,1721490655535,-500.0,0.0001536,2]
[332730503,1721490655545,-500.0,0.0001536,2]
[332730504,1721490655554,-255.62,0.0001536,2]
[332730505,1721490655564,-608.35,0.0001536,2]
[332730506,1721490655573,-500.0,0.0001536,2]
[332730507,1721490655583,-500.0,0.0001536,2]
[332730508,1721490655592,-500.0,0.0001536,2]
[332730509,1721490655602,-2395.97,0.0001536,2]
[332730510,1721490655611,-500.0,0.0001536,2]
[332730511,1721490655621,-500.0,0.0001536,2]
[332730512,1721490655631,-641.96,0.0001536,2]
[332730513,1721490655641,-500.0,0.0001536,2]
[332730514,1721490655650,-500.0,0.0001536,2]
[332730515,1721490655660,-500.0,0.0001536,2]
[332730516,1721490655670,-500.0,0.0001536,2]
[332730517,1721490655680,-500.0,0.0001536,2]
[332730518,1721490655692,-500.0,0.0001536,2]
[332730519,1721490655703,-500.0,0.0001536,2]
[332730520,1721490655715,-500.0,0.0001536,2]
[332730521,1721490655725,-820.83,0.0001536,2]
[332730522,1721490655735,-582.4,0.0001536,2]